fUST/lending_fUST_20260123
["ID","MTS","AMOUNT","RATE_DAILY","PERIOD"]
[403058524,1769110238790,-500.0,0.0001683,2]
[403058526,1769110238800,-500.0,0.0001683,2]
[403058529,1769110238809,-500.0,0.0001683,2]
[403058530,1769110238819,-500.0,0.0001683,2]
[403058533,1769110238830,-500.0,0.0001683,2]
[403058534,1769110238839,-500.0,0.0001683,2]
[403058536,1769110238849,-500.0,0.0001683,2]
[403058538,1769110238858,-500.0,0.0001683,2]
[403058540,1769110238869,-500.0,0.0001683,2]
[403058542,1769110238879,-500.0,0.0001683,2]
[403058544,1769110238888,-500.0,0.0001683,2]
[403058546,1769110238897,-500.0,0.0001683,2]
[403058548,1769110238906,-420.90391266,0.0001683,2]
[403058550,1769110238916,-500.0,0.0001683,2]
[403058552,1769110238925,-500.0,0.0001683,2]
[403058554,1769110238935,-142.28842743,0.0001683,2]
[403058557,1769110238947,-491.62355895,0.0001683,2]
[403058559,1769110238958,-500.0,0.0001683,2]
[403058561,1769110238969,-260.62644105,0.0001683,2]
[403058563,1769110238981,-239.37355895,0.0001683,2]
[403058565,1769110238991,-500.0,0.0001683,2]
[403058567,1769110239001,-500.0,0.0001683,2]
[403058569,1769110239011,-419.82934254,0.0001683,2]
[403058572,1769110239026,-80.17065746,0.0001683,2]
[403058574,1769110239035,-500.0,0.0001683,2]
[403058576,1769110239045,-606.0715437,0.0001683,2]
[403058578,1769110239055,-633.16359409,0.0001683,2]
[403058580,1769110239066,-1000.0,0.00016919,2]
[403058582,1769110239075,-173.1,0.00017005,2]
[403058584,1769110239084,-500.0,0.000173,10]
[403058586,1769110239093,-500.0,0.000173,10]
[403058587,1769110239103,-500.0,0.000173,10]
[403058589,1769110239112,-500.0,0.000173,10]
[403058591,1769110239122,-500.0,0.000173,10]
[403058593,1769110239133,-500.0,0.000173,10]
[403058596,1769110239144,-500.0,0.000173,10]
[403058598,1769110239154,-500.0,0.000173,10]
[403058599,1769110239163,-706.81011098,0.000173,10]
[403058602,1769110239174,-358.280474,0.00017526,2]
[403058603,1769110239183,-162.489025,0.00017828,2]
[403058605,1769110239194,-300.0,0.00018385,2]
[403058607,1769110239203,-300.0,0.00018385,2]
[403058609,1769110239213,-7763.5935655,0.00018519,2]
[403058611,1769110239223,-249.87570083,0.00018538,2]
[403058613,1769110239232,-198.38875625,0.00018538,2]
[403058615,1769110239243,-230.95337731,0.00018581,2]
[403058617,1769110239252,-608.46357614,0.0001863,2]
[403058619,1769110239262,-900.0,0.0001863,2]
[403058621,1769110239274,-500.1437279,0.00018691,2]
[403058623,1769110239283,-303.10001604,0.000189,2]
[403058624,1769110239293,-17983.170039,0.00019,2]
[403058625,1769110239302,-2603.49,0.00019,2]
[403058627,1769110239312,-269.324,0.00019101,3]
[403058628,1769110239321,-3950.07,0.00019178,2]
[403058629,1769110239330,-500.0,0.00019178,2]
[403058630,1769110239339,-200.56916409,0.00019178,2]
[403058631,1769110239349,-1816.72,0.000193,2]
[403058632,1769110239358,-157.26,0.000193,2]
[403058633,1769110239367,-500.0,0.00019452,2]
[403058634,1769110239375,-10000.0,0.00019894,7]
[403058635,1769110239384,-10000.0,0.00019894,7]
[403058636,1769110239394,-10000.0,0.00019894,7]
[403058637,1769110239403,-10000.0,0.00019894,7]
[403058638,1769110239411,-10000.0,0.00019894,7]
[403058639,1769110239420,-10000.0,0.00019894,7]
[403058640,1769110239429,-6329.0,0.00019894,7]
[403058641,1769110239438,-184.31641531,0.0002,2]
[403058642,1769110239447,-266.18355351,0.0002058,2]
[403058643,1769110239456,-150.0,0.00020726,2]
[403058644,1769110239465,-150.0,0.00020726,2]
[403058645,1769110239474,-150.0,0.00020726,2]
[403058646,1769110239483,-150.0,0.00020726,2]
[403058647,1769110239493,-150.0,0.00020726,2]
[403058648,1769110239502,-150.0,0.00020726,2]
[403058649,1769110239511,-150.0,0.00020726,2]
[403058650,1769110239521,-150.0,0.00020726,2]
[403058651,1769110239531,-150.0,0.00020726,2]
[403058652,1769110239541,-500.0,0.00020726,2]
[403058653,1769110239550,-200.000001,0.00020726,2]
[403058654,1769110239559,-150.0,0.00020726,2]
[403058655,1769110239568,-150.0,0.00020726,2]
[403058656,1769110239577,-150.0,0.00020726,2]
[403058657,1769110239586,-150.0,0.00020726,2]
[403058658,1769110239595,-150.15040336,0.00020726,2]
[403058659,1769110239604,-500.0,0.00020726,2]
[403058660,1769110239613,-268.58586083,0.00020726,2]
[403058661,1769110239622,-150.0,0.00020863,2]
[403058662,1769110239632,-150.0,0.00020863,2]
[403058663,1769110239643,-150.0,0.00020863,2]
[403058664,1769110239652,-150.0,0.00020863,2]
[403058665,1769110239662,-150.0,0.00020863,2]
[403058666,1769110239671,-150.0,0.00020863,2]
[403058667,1769110239680,-150.0,0.00020863,2]
[403058668,1769110239690,-150.0,0.00020863,2]
[403058669,1769110239699,-500.0,0.00020863,2]
[403058670,1769110239709,-150.0,0.00020863,2]
[403058671,1769110239718,-150.0,0.00020863,2]
[403058672,1769110239728,-150.0,0.00020863,2]
[403058673,1769110239737,-150.0,0.00020863,2]
[403058674,1769110239747,-500.0,0.00020863,2]
[403058675,1769110239757,-183.12,0.000209,2]
[403058676,1769110239767,-150.0,0.00021,2]
[403058677,1769110239777,-150.0,0.00021,2]
[403058678,1769110239786,-150.0,0.00021,2]
[403058679,1769110239796,-150.0,0.00021,2]
[403058680,1769110239805,-150.0,0.00021,2]
[403058681,1769110239815,-150.0,0.00021,2]
[403058682,1769110239825,-150.32930833,0.00021,2]
[403058683,1769110239836,-500.0,0.00021,2]
[403058684,1769110239845,-200.0,0.00021,2]
[403058685,1769110239855,-200.0,0.00021,2]
[403058686,1769110239864,-200.0,0.00021,2]
[403058687,1769110239874,-200.0,0.00021,2]
[403058688,1769110239884,-500.0,0.00021,2]
[403058689,1769110239894,-150.0,0.00021137,2]
[403058690,1769110239903,-150.0,0.00021137,2]
[403058691,1769110239913,-150.0,0.00021137,2]
[403058692,1769110239922,-150.0,0.00021137,2]
[403058693,1769110239931,-150.0,0.00021137,2]
[403058694,1769110239940,-150.0,0.00021137,2]
[403058695,1769110239949,-500.0,0.00021137,2]
[403058696,1769110239958,-500.0,0.00021137,2]
[403058697,1769110239968,-200.0,0.00021274,2]
[403058699,1769110239978,-150.0,0.00021274,2]
[403058701,1769110239987,-150.0,0.00021274,2]
[403058702,1769110239996,-500.0,0.00021274,2]
[403058704,1769110240007,-250.0,0.00021411,2]
[403058705,1769110240016,-250.0,0.00021411,2]
[403058706,1769110240028,-231.0,0.00021411,2]
[403058707,1769110240039,-161.0,0.00021425,4]
[403058708,1769110240048,-234.11872737,0.000215,2]
[403058709,1769110240058,-234.11872737,0.000217,2]
[403058710,1769110240067,-151.0,0.000217,3]
[403058711,1769110240076,-969.5,0.00021704,10]
[403058713,1769110240085,-1732.2918756,0.00021717,2]
[403058714,1769110240096,-882.2618636,0.00021837,2]
[403058715,1769110240105,-2354.2886704,0.00021837,2]
[403058716,1769110240114,-44979.2088604,0.00021837,2]
[403058717,1769110240123,-150.0,0.00021918,2]
[403058718,1769110240132,-167.0,0.00022,2]
[403058719,1769110240142,-859.2,0.00022,7]
[403058720,1769110240152,-3261.07318632,0.00022151,2]
[403058721,1769110240161,-151.0,0.000223,10]
[403058722,1769110240170,-386.5265636,0.00022431,2]
[403058723,1769110240180,-3950.07,0.00022465,4]
[403058725,1769110240189,-300.0,0.00022466,2]
[403058727,1769110240198,-301.41372971,0.0002258,2]
[403058729,1769110240208,-157.24845598,0.00022627,5]
[403058730,1769110240217,-1237.01,0.000229,2]
[403058731,1769110240227,-151.0,0.000229,5]
[403058732,1769110240236,-1023.78521775,0.00023,2]
[403058734,1769110240246,-450.0,0.00023014,2]
[403058735,1769110240255,-331.0,0.00023356,2]
[403058736,1769110240265,-10036.2180763,0.00023457,2]
[403058737,1769110240275,-151.0,0.000235,7]
[403058738,1769110240285,-289.07618867,0.00023562,2]
[403058739,1769110240295,-381.0,0.00023592,2]
[403058740,1769110240305,-226.57,0.00023615,2]
[403058741,1769110240314,-367.43628632,0.00023801,2]
[403058742,1769110240323,-2239.3829466,0.00023819,2]
[403058743,1769110240332,-3261.07318632,0.00023958,2]
[403058744,1769110240341,-75427.41510285,0.00024,7]
[403058745,1769110240350,-813.19,0.00024,14]
[403058747,1769110240359,-288407.71449002,0.00024,7]
[403058749,1769110240369,-1021.0,0.00024,2]
[403058750,1769110240378,-7963.55,0.00024,2]
[403058752,1769110240387,-1000.0,0.00024,24]
[403058754,1769110240397,-502633.48809256,0.00024142,2]
[403058756,1769110240410,-7867.23047152,0.00024142,2]
[403058758,1769110240421,-1689.09378266,0.00024142,2]
[403058759,1769110240430,-151.0,0.000242,8]
[403058761,1769110240439,-100.20563566,0.00024429,2]
[403058766,1769110240784,-50000.0,0.0001683,2]
[403058767,1769110240794,-2147.97607495,0.00024429,2]
[403058768,1769110240804,-151.0,0.00024429,2]
[403058769,1769110240813,-500.0,0.00024429,2]
[403058770,1769110240823,-151.0,0.00024429,2]
[403058771,1769110240832,-300.91570277,0.00024429,2]
[403058772,1769110240842,-151.0,0.00024429,2]
[403058773,1769110240851,-198.0,0.00024429,2]
[403058774,1769110240860,-461.67526834,0.00024429,2]
[403058775,1769110240870,-151.0,0.00024429,2]
[403058776,1769110240879,-151.0,0.00024429,2]
[403058777,1769110240888,-557.5788265,0.00024429,2]
[403058778,1769110240897,-168.3888056,0.00024429,2]
[403058779,1769110240907,-174.61919141,0.00024429,2]
[403058780,1769110240916,-181.08010149,0.00024429,2]
[403058781,1769110240925,-187.78006525,0.00024429,2]
[403058782,1769110240934,-194.72792766,0.00024429,2]
[403058783,1769110240944,-201.93286099,0.00024429,2]
[403058784,1769110240953,-209.40437684,0.00024429,2]
[403058785,1769110240962,-217.15233878,0.00024429,2]
[403058786,1769110240972,-225.18697532,0.00024429,2]
[403058787,1769110240981,-233.51889341,0.00024429,2]
[403058788,1769110240990,-242.15909246,0.00024429,2]
[403058789,1769110240999,-251.11897888,0.00024429,2]
[403058790,1769110241008,-260.4103811,0.00024429,2]
[403058791,1769110241018,-270.0455652,0.00024429,2]
[403058792,1769110241030,-280.03725112,0.00024429,2]
[403058793,1769110241040,-290.39862941,0.00024429,2]
[403058794,1769110241049,-301.1433787,0.00024429,2]
[403058795,1769110241060,-336.64390591,0.00024581,2]
[403058796,1769110241070,-514.53397614,0.0002465,2]
[403058797,1769110241079,-116163.03340012,0.0002465,2]
[403058798,1769110241089,-500.0,0.00024658,2]
[403058799,1769110241101,-593.74,0.000247,3]
[403058800,1769110241110,-1041.66666667,0.00024772,2]
[403058801,1769110241120,-500.0,0.00024795,2]
[403058802,1769110241129,-6111.8094763,0.00024832,2]
[403058803,1769110241138,-882.2618636,0.00024896,2]
[403058804,1769110241148,-590294.75018119,0.000249,2]
[403058805,1769110241160,-16418.37536781,0.000249,2]
[403058806,1769110241170,-151.0,0.000249,7]
[403058807,1769110241179,-151.0,0.000249,7]
[403058808,1769110241188,-151.0,0.000249,7]
[403058809,1769110241198,-500.0,0.00024932,2]
[403058810,1769110241207,-367.6654061,0.00024977,2]
[403058811,1769110241217,-578.20924308,0.00024977,2]
[403058812,1769110241227,-89408.72903668,0.00025,5]
[403058813,1769110241236,-61841.09872675,0.00025,15]
[403058814,1769110241245,-72536.50397299,0.00025,8]
[403058815,1769110241365,-3e-08,0.00025,8]
[403058835,1769110247519,-1301.22142741,0.0002475,2]
[403058836,1769110285130,500.0,0.00013273,2]
[403058837,1769110285163,1500.0,0.00015464,2]
[403058838,1769110285197,1000.0,0.00013821,2]
[403058839,1769110285241,1500.0,0.00014368,2]
[403058840,1769110285309,2000.0,0.00014916,2]
[403058841,1769110285379,500.0,0.00013699,2]
[403058842,1769110285436,1000.0,0.00014247,2]
[403058843,1769110285492,1015.83976105,0.00014795,2]
[403058844,1769110323674,500.0,0.00013699,2]
[403058845,1769110328977,328.79744204,0.00014247,2]
[403058846,1769110385631,500.0,0.00013273,2]
[403058847,1769110389517,500.0,0.00013699,2]
[403058848,1769110389550,308.75234675,0.00014247,2]
[403058849,1769110391630,500.0,0.00013699,2]
[403058850,1769110391689,436.47618632,0.00014247,2]
[403058852,1769110623168,492.04739159,0.00013273,2]
[403058853,1769110744498,164.58073526,0.00013273,2]
[403058854,1769110983211,504.72048866,0.00013273,2]
[403058855,1769111267317,1500.0,0.00015,2]
[403058856,1769111283481,500.0,0.00013699,2]
[403058857,1769111283534,328.79744204,0.00014247,2]
[403058858,1769111401931,5000.0,0.00016309,2]
[403058859,1769111424129,5000.0,0.00016309,2]
[403058900,1769111438609,-182.04851683,0.00016622,2]
[403058902,1769111438619,-662.0,0.00016622,2]
[403058904,1769111438628,-661.0,0.00016829,2]
[403058906,1769111438637,-300.0,0.0001683,2]
[403058908,1769111438646,-300.0,0.0001683,2]
[403058909,1769111438655,-300.0,0.0001683,2]
[403058911,1769111438665,-300.0,0.0001683,2]
[403058913,1769111438674,-500.0,0.00016831,2]
[403058915,1769111438684,-500.0,0.00016831,2]
[403058917,1769111438693,-500.0,0.00016831,2]
[403058919,1769111438702,-358.0,0.00018385,2]
[403058921,1769111438710,-223.10831409,0.00018516,2]
[403058923,1769111438719,-174.91299058,0.00018516,2]
[403058925,1769111438729,-289.56350486,0.00018516,2]
[403058927,1769111438738,-500.0,0.00018516,2]
[403058929,1769111438748,-435.65599029,0.00018516,2]
[403058931,1769111438756,-514.7959549,0.00018516,2]
[403058933,1769111438766,-50000.0,0.00018517,2]
[403058935,1769111438775,-500.0,0.00018518,2]
[403058937,1769111438784,-570.06,0.00018587,2]
[403058939,1769111438793,-214.81724986,0.00018622,2]
[403058941,1769111438803,-303.10001603,0.000189,2]
[403058943,1769111438812,-2164.46982801,0.00019822,2]
[403058945,1769111438821,-10000.0,0.00019922,7]
[403058947,1769111438830,-10000.0,0.00019922,7]
[403058948,1769111438839,-10000.0,0.00019922,7]
[403058950,1769111438854,-6329.0,0.00019922,7]
[403058952,1769111438863,-159.62665952,0.00019989,2]
[403058954,1769111438873,-157.07055921,0.00019989,2]
[403058956,1769111438882,-247.58598289,0.00020622,2]
[403058958,1769111438892,-2164.46982801,0.00021184,2]
[403058960,1769111438901,-250.0,0.00021962,2]
[403058962,1769111438911,-908.8935477,0.0002249,10]
[403058965,1769111438923,-1670.94024361,0.0002249,10]
[403058967,1769111438937,-6694.90620869,0.0002249,10]
[403058969,1769111438947,-773.29,0.000225,7]
[403058971,1769111438956,-2164.46982801,0.00022547,2]
[403058973,1769111438966,-280.35471592,0.00022622,2]
[403058975,1769111438980,-300.0,0.00023593,2]
[403058977,1769111438990,-2164.46982801,0.00023909,2]
[403058979,1769111439001,-1041.66666667,0.00024,7]
[403058981,1769111439012,-15003.64238732,0.00024,4]
[403058983,1769111439022,-184.31641531,0.00024103,2]
[403058985,1769111439032,-1787.42464233,0.00024169,2]
[403058987,1769111439043,-2230.315306,0.0002423,2]
[403058988,1769111439053,-445.202766,0.0002423,2]
[403058990,1769111439063,-557.5788265,0.0002423,2]
[403058992,1769111439075,-168.3888056,0.0002423,2]
[403058994,1769111439084,-174.61919141,0.0002423,2]
[403058996,1769111439094,-146.44623359,0.0002423,2]
[403058998,1769111439106,-34.6338679,0.0002423,2]
[403059000,1769111439116,-187.78006525,0.0002423,2]
[403059002,1769111439126,-194.72792766,0.0002423,2]
[403059004,1769111439135,-28.89589672,0.0002423,2]
[403059006,1769111439146,-173.03696427,0.0002423,2]
[403059008,1769111439155,-209.40437684,0.0002423,2]
[403059009,1769111439164,-217.15233878,0.0002423,2]
[403059011,1769111439175,-0.19377707,0.0002423,2]
[403059014,1769111439187,-224.99319825,0.0002423,2]
[403059015,1769111439196,-233.51889341,0.0002423,2]
[403059017,1769111439205,-96.07077677,0.0002423,2]
[403059019,1769111439216,-146.08831569,0.0002423,2]
[403059021,1769111439226,-251.11897888,0.0002423,2]
[403059023,1769111439235,-260.4103811,0.0002423,2]
[403059025,1769111439245,-270.0455652,0.0002423,2]
[403059027,1769111439254,-280.03725112,0.0002423,2]
[403059029,1769111439263,-109.21504717,0.0002423,2]
[403059031,1769111439274,-181.18358224,0.0002423,2]
[403059033,1769111439284,-226.2,0.00024278,2]
[403059035,1769111439294,-975.42596486,0.00024607,2]
[403059037,1769111439306,-66.24070181,0.00024607,2]
[403059039,1769111439315,-313.12344894,0.00024622,2]
[403059041,1769111439324,-291.1253188,0.00024645,2]
[403059043,1769111439336,-380.0,0.00024658,2]
[403059045,1769111439345,-500.0,0.00024658,2]
[403059047,1769111439354,-150.0,0.00024701,2]
[403059049,1769111439367,-2150.738,0.00024778,2]
[403059051,1769111439376,-578.20924308,0.00024778,2]
[403059053,1769111439385,-318.72,0.0002479,2]
[403059055,1769111439395,-500.0,0.00024795,2]
[403059056,1769111439407,-3620.89,0.00024799,2]
[403059058,1769111439417,-773.29,0.000248,7]
[403059060,1769111439426,-291.1253188,0.000248,2]
[403059062,1769111439437,-150.0,0.00024838,2]
[403059064,1769111439447,-5241.2738649,0.00024875,2]
[403059069,1769111439485,-972.38128575,0.00024875,2]
[403059071,1769111439495,-554.7143765,0.00024888,2]
[403059073,1769111439503,-3544.9658272,0.000249,2]
[403059075,1769111439515,-302.0,0.000249,2]
[403059164,1769111440815,-301.1433787,0.0002423,2]
[403059166,1769111440824,-788.92586666,0.000249,2]
[403059168,1769111440836,-113469.44200014,0.000249,2]
[403059337,1769111443752,-6995.29151134,0.000249,2]
[403059339,1769111443764,-5098.51023176,0.000249,2]
[403059340,1769111443775,-5900.64193889,0.000249,2]
[403059344,1769111443908,-1135.04524533,0.000249,2]
[403059345,1769111443920,-68083.76700024,0.000249,2]
[403059346,1769111443931,-1279.70171902,0.000249,2]
[403059385,1769111446736,-5000.0,0.00024651,2]
[403059387,1769111446745,-625.39213866,0.000249,2]
[403059389,1769111446756,-8950.0,0.000249,2]
[403059399,1769111446840,-253.7425319,0.000249,2]
[403059584,1769111583489,492.04739159,0.00013273,2]
[403059586,1769111703289,331.32850886,0.00013273,2]
[403059587,1769111943869,500.0,0.00013273,2]
[403059588,1769111943901,518.94958099,0.00013821,2]
[403059589,1769112243662,336.1328084,0.00014247,2]
[403059590,1769112243709,500.0,0.00013699,2]
[403059593,1769112543753,492.04739159,0.00013273,2]
[403059603,1769112631624,-638.07794766,0.00017333,2]
[403059604,1769112631634,-83.63044386,0.00017433,2]
[403059605,1769112631645,-665.05160848,0.00017433,2]
[403059750,1769112638029,-4251.31794766,0.00017433,2]
[403059752,1769112638038,-676.0,0.00017433,2]
[403059754,1769112638047,-164.90991854,0.00017738,2]
[403059756,1769112638056,-2702.592064,0.00019709,2]
[403059759,1769112638076,-194.59370388,0.00019738,2]
[403059761,1769112638086,-1000.0,0.00020433,2]
[403059763,1769112638095,-500.0,0.0002056,2]
[403059765,1769112638104,-500.0,0.0002056,2]
[403059767,1769112638113,-500.0,0.0002056,2]
[403059769,1769112638123,-500.0,0.0002056,2]
[403059771,1769112638132,-500.0,0.0002056,2]
[403059773,1769112638141,-500.0,0.0002056,2]
[403059775,1769112638151,-500.0,0.0002056,2]
[403059777,1769112638160,-290.98696626,0.0002056,2]
[403059778,1769112638169,-186.28274659,0.0002056,2]
[403059780,1769112638178,-399.06457836,0.00020561,2]
[403059782,1769112638188,-5446.41135915,0.00020561,2]
[403059784,1769112638198,-2837.79768637,0.00020722,2]
[403059786,1769112638207,-150.0,0.00021,2]
[403059789,1769112638216,-2739.3633812,0.00021459,2]
[403059790,1769112638226,-252.5,0.00021562,10]
[403059792,1769112638235,-1041.66666667,0.00021588,2]
[403059794,1769112638245,-224.27748921,0.00021738,2]
[403059796,1769112638255,-3079.47906425,0.00021886,2]
[403059799,1769112638275,-241.0,0.00022,2]
[403059801,1769112638296,-156.17581986,0.00022046,2]
[403059803,1769112638306,-615.74647505,0.00022047,2]
[403059805,1769112638316,-1108.34365508,0.00022047,2]
[403059807,1769112638326,-1970.38872015,0.00022047,2]
[403059809,1769112638335,-3078.73237523,0.00022047,2]
[403059811,1769112638345,-4433.37462034,0.00022047,2]
[403059813,1769112638355,-312.0991706,0.00022123,7]
[403059815,1769112638365,-150.0,0.00022123,7]
[403059817,1769112638374,-241.0,0.00022192,7]
[403059819,1769112638383,-4388.32911738,0.00022849,10]
[403059821,1769112638397,-3340.62088262,0.00022849,10]
[403059823,1769112638408,-933180.51493878,0.00022859,2]
[403060270,1769112642603,-735.06920331,0.0002263,2]
[403060318,1769112643025,-2235.72291812,0.0002263,2]
[403060320,1769112643037,-2029.20787857,0.0002263,2]
[403060322,1769112643046,-5433.57905564,0.00022849,10]
[403060339,1769112643185,-1007.21094436,0.00022849,10]
[403060341,1769112643194,-1906.2663663,0.00022859,2]
[403060343,1769112643205,-414.09177835,0.00022859,2]
[403060345,1769112643217,-276.18010432,0.00022859,2]
[403060347,1769112643228,-2779.06493124,0.00022859,2]
[403060350,1769112643243,-7637.29326398,0.00022859,2]
[403060604,1769112645824,-27068.67334768,0.00022859,2]
[403062081,1769113503206,492.04739159,0.00013273,2]
[403062084,1769113672355,9507.96260841,0.00012,5]
[403062085,1769113672376,10000.01,0.00012,5]
[403062086,1769113672398,8682.78718429,0.00012,5]
[403062163,1769113837824,-5000.0,0.00017974,2]
[403062165,1769113837833,-170.63429631,0.00018294,2]
[403062167,1769113837843,-810.60354195,0.00018764,2]
[403062168,1769113837853,-3239.17175365,0.00018764,2]
[403062169,1769113837861,-303.10001605,0.000189,2]
[403062170,1769113837871,-395.54780475,0.00018902,2]
[403062171,1769113837880,-198.99855181,0.00018902,2]
[403062173,1769113837890,-161.91931718,0.00018903,2]
[403062176,1769113837900,-647.67726871,0.00018903,2]
[403062177,1769113837910,-1457.27385459,0.00018903,2]
[403062179,1769113837920,-2590.70907483,0.00018903,2]
[403062182,1769113837930,-4047.98292943,0.00018903,2]
[403062184,1769113837939,-5829.09541838,0.00018903,2]
[403062185,1769113837948,-873.37595643,0.000197,2]
[403062187,1769113837957,-360.0,0.00019769,2]
[403062189,1769113837966,-170.8554559,0.00019778,2]
[403062191,1769113837975,-183.8731578,0.00019797,2]
[403062194,1769113837985,-185.92678016,0.00019797,2]
[403062195,1769113837995,-3799.2,0.00019797,2]
[403062197,1769113838010,-1000000.0,0.00019798,2]
[403062200,1769113838020,-7963.55,0.000198,2]
[403062203,1769113838030,-183.12,0.000198,2]
[403062204,1769113838040,-151.0,0.000198,2]
[403062206,1769113838049,-151.0,0.000198,2]
[403062209,1769113838058,-157.26,0.000198,2]
[403062211,1769113838067,-2313.44,0.000198,2]
[403062213,1769113838077,-2000.0,0.0002,7]
[403062215,1769113838088,-464.0,0.00020001,2]
[403062217,1769113838096,-201.34846964,0.00020294,2]
[403062219,1769113838106,-232.085575,0.00020394,2]
[403062221,1769113838116,-10000.0,0.00020498,7]
[403062223,1769113838125,-2000.0,0.000205,7]
[403062225,1769113838133,-10000.0,0.00020642,7]
[403062227,1769113838143,-2654.47709068,0.00020642,7]
[403062229,1769113838153,-500.0,0.00020642,7]
[403062231,1769113838164,-2012.70208524,0.00020642,7]
[403062311,1769113846226,-5000.0,0.00020573,2]
[403062312,1769113846235,-3031.22077718,0.00020642,7]
[403062313,1769113846246,-1801.6000469,0.00020642,7]
[403062314,1769113846255,-537.420711,0.00020781,2]
[403062315,1769113846264,-2000.0,0.00021,7]
[403062316,1769113846273,-2000.0,0.000215,7]
[403062317,1769113846282,-234.11872737,0.000216,2]
[403062318,1769113846291,-61.99300832,0.00021665,2]
[403062319,1769113846302,-979.67365835,0.00021665,2]
[403062320,1769113846312,-161.0,0.00021671,5]
[403062321,1769113846321,-234.11872737,0.000218,2]
[403062322,1769113846330,-969.5,0.00021879,10]
[403062323,1769113846338,-150.0,0.00021918,2]
[403062324,1769113846348,-1267.93,0.00022,2]
[403062325,1769113846357,-181.0,0.00022,2]
[403062326,1769113846365,-2000.0,0.00022,7]
[403062327,1769113846375,-181.0,0.00022192,7]
[403062328,1769113846384,-232.06264298,0.00022294,2]
[403062329,1769113846393,-300.0,0.00022466,2]
[403062330,1769113846401,-2000.0,0.000225,7]
[403062331,1769113846410,-920.76274985,0.0002277,2]
[403062707,1769115038131,-3768.84280786,0.00018002,2]
[403062708,1769115038143,-1231.15719214,0.00018002,2]
[403062709,1769115038153,-168.60863212,0.00018232,2]
[403062710,1769115038162,-900.0,0.0001863,2]
[403062711,1769115038172,-2876.55321009,0.00018773,2]
[403062712,1769115038185,-1468.65938331,0.00018773,2]
[403062713,1769115038195,-303.10001609,0.000189,2]
[403062714,1769115038204,-500.1437279,0.00018902,2]
[403062715,1769115038214,-200.56916409,0.00019178,2]
[403062716,1769115038223,-198.99855181,0.00019277,2]
[403062717,1769115038232,-395.54780475,0.00019277,2]
[403062718,1769115038241,-13947.40353542,0.00019278,2]
[403062720,1769115038250,-183.8731578,0.00019366,2]
[403062722,1769115038259,-185.92678016,0.00019366,2]
[403062724,1769115038269,-954367.36989561,0.00019367,2]
[403062726,1769115038280,-752.73625706,0.00019367,2]
[403062758,1769115040266,-748.79239389,0.00019367,2]
[403062759,1769115040321,-17698.23526041,0.00019367,2]
[403062760,1769115040332,-1429.68203206,0.00019367,2]
[403062803,1769115043187,-2441.2121225,0.00019173,2]
[403062804,1769115043199,-453.0,0.00019173,2]
[403062805,1769115043294,-602.20396049,0.00019173,2]
[403062806,1769115043306,-1503.58391701,0.00019173,2]
[403062807,1769115043315,-499.70190589,0.00019367,2]
[403062809,1769115046112,-1041.66666667,0.00019367,2]
[403062810,1769115046220,-1020.96215333,0.00019367,2]
[403062816,1769115545440,-5000.0,0.00018156,2]
[403062817,1769115551388,-168.77645947,0.00018247,2]
[403062818,1769115551418,-4662.45708106,0.00018339,2]
[403062928,1769116238155,-792.99927795,0.00017008,3]
[403062930,1769116238168,-670.0,0.0001707,2]
[403062932,1769116238178,-165.40093028,0.0001707,2]
[403062934,1769116238189,-1440.47548123,0.00017132,2]